bitfinex/quotes_SOLUSD_20250402
["timestamp","ask_amount","ask_price","bid_price","bid_amount"]
[1743626294112,0.063,127.68,127.64,26.0]
[1743626294316,39.89051603,127.73,127.67,26.28432314]
[1743626294510,7.8875,127.81,127.69,0.28432314]
[1743626294826,0.063,127.81,127.74,0.42648471]
[1743626295009,0.063,127.81,127.76,26.0]
[1743626295325,0.063,127.81,127.77,26.28432314]
[1743626295526,0.063,127.81,127.7,0.28432314]
[1743626295823,56.70426957,127.79,127.71,26.0]
[1743626296030,0.063,127.81,127.71,26.0]
[1743626296405,0.063,127.81,127.69,26.0]
[1743626296608,7.8259,127.78,127.7,0.28432314]
[1743626296828,7.8259,127.78,127.69,26.0]
[1743626297041,0.063,127.81,127.74,0.28432314]
[1743626297230,0.063,127.81,127.77,26.0]
[1743626297538,7.8173,127.93,127.81,26.0]
[1743626297837,7.8131,127.99,127.86,0.28432314]
[1743626298039,76.70426957,127.98,127.85,26.0]
[1743626298330,56.70426957,127.98,127.82,26.28432314]
[1743626298531,56.70426957,127.98,127.86,26.0]
[1743626298838,56.70426957,127.97,127.87,0.28432314]
[1743626299015,18.79181043,127.98,127.87,0.28432314]
[1743626299212,18.79181043,127.98,127.75,7.8277]
[1743626299213,56.70426957,127.93,127.75,7.8277]
[1743626299427,0.14216157,127.9,127.76,18.64964886]
[1743626299626,19.07613357,127.96,127.77,0.14216157]
[1743626299932,56.70426957,127.94,127.84,0.28432314]
[1743626300135,56.70426957,127.96,127.84,0.28432314]
[1743626300324,0.14216157,127.95,127.8,15.07613357]
[1743626300632,7.8179,127.91,127.75,105.6734]
[1743626300812,56.70426957,127.89,127.75,27.3956]
[1743626301212,7.8179,127.91,127.75,27.3956]
[1743626301413,59.0655,127.99,127.77,0.5]
[1743626301631,19.5367,127.97,127.78,0.5]
[1743626301830,56.70426957,127.93,127.75,27.3956]
[1743626302029,0.14216157,127.95,127.76,0.5]
[1743626302313,76.38313114,127.97,127.81,0.14216157]
[1743626302735,84.19743114,127.97,127.86,26.0]
[1743626302916,56.70426957,127.96,127.86,26.0]
[1743626303110,0.14216157,127.96,127.83,18.933972]
[1743626303316,56.70426957,127.91,127.79,7.8253]
[1743626303628,27.351,127.97,127.84,18.79181043]
[1743626303936,0.14216157,127.96,127.84,0.28432314]
[1743626304237,18.79181043,127.94,127.79,27.3886]
[1743626304439,18.79181043,127.94,127.82,26.0]
[1743626304645,56.70426957,127.87,127.77,7.8265]
[1743626304847,56.70426957,127.85,127.75,7.8277]
[1743626305135,27.3721,127.87,127.71,46.9814]
[1743626305341,64.52526957,127.87,127.71,67.057]
[1743626305522,20.0,127.96,127.76,0.14216157]
[1743626305720,0.14216157,127.9,127.75,44.64964886]
[1743626305924,0.14216157,127.9,127.76,0.14216157]
[1743626306126,56.70426957,127.89,127.76,0.42648471]
[1743626306440,7.8118,128.01,127.82,0.5]
[1743626306645,27.3425,128.01,127.86,26.0]
[1743626306823,7.8161,127.94,127.84,7.8222]
[1743626307018,64.52036957,127.94,127.84,7.8222]
[1743626307234,64.52036957,127.94,127.8,26.0]
[1743626307235,56.70426957,127.89,127.8,26.0]
[1743626307542,56.70426957,127.87,127.76,7.8271]
[1743626307740,57.13075428,127.92,127.76,7.8271]
[1743626307741,18.64964886,127.91,127.76,7.8271]
[1743626307949,56.70426957,127.88,127.79,26.0]
[1743626308130,56.70426957,127.89,127.78,0.14216157]
[1743626308329,7.8145,127.97,127.8,18.79181043]
[1743626308643,56.70426957,127.89,127.77,18.64964886]
[1743626308842,56.70426957,127.88,127.72,7.8296]
[1743626309025,27.3651,127.9,127.74,19.571]
[1743626309225,7.8186,127.9,127.79,18.933972]
[1743626309426,7.8186,127.9,127.79,0.28432314]
[1743626309630,18.64964886,127.94,127.79,0.28432314]
[1743626309631,7.8173,127.92,127.79,0.28432314]
[1743626309826,56.70426957,127.94,127.79,0.28432314]
[1743626310021,56.70426957,127.95,127.79,0.28432314]
[1743626310222,56.70426957,127.93,127.79,0.28432314]
[1743626310430,56.70426957,127.95,127.79,0.28432314]
[1743626310622,56.70426957,127.89,127.75,18.64964886]
[1743626310925,39.0685,127.99,127.77,0.14216157]
[1743626311125,56.70426957,127.94,127.8,19.07613357]
[1743626311424,56.70426957,127.89,127.78,0.14216157]
[1743626311742,56.70426957,127.88,127.76,27.395]
[1743626311922,56.70426957,127.79,127.66,19.15547688]
[1743626312119,56.70426957,127.76,127.69,7.8313]
[1743626312326,56.70426957,127.8,127.53,0.24021285]
[1743626312327,56.70426957,127.73,127.65,7.8337]
[1743626312542,56.70426957,127.72,127.64,26.0]
[1743626312749,7.8299,127.72,127.61,19.5897]
[1743626312956,0.14216157,127.8,127.64,26.0]
[1743626313125,288.38,127.86,127.62,0.5]
[1743626313459,288.38,127.86,127.68,26.0]
[1743626313460,0.14216157,127.8,127.68,26.0]
[1743626313627,66.309672,127.85,127.65,18.79181043]
[1743626313628,27.66002314,127.85,127.65,18.79181043]
[1743626313831,7.04713785,127.91,127.73,0.14216157]
[1743626314029,7.8149,127.96,127.77,0.28432314]
[1743626314232,7.8149,127.96,127.84,26.0]
[1743626314438,56.70426957,127.98,127.85,0.28432314]
[1743626314657,276.1925,128.0,127.88,26.0]
[1743626314850,56.70426957,127.94,127.82,26.0]
[1743626315150,0.14216157,127.9,127.72,0.5]
[1743626315350,75.49608,127.87,127.69,0.5]
[1743626315533,0.14216157,127.82,127.72,19.5729]
[1743626315730,56.70426957,127.78,127.71,7.8302]
[1743626315938,56.70426957,127.83,127.74,26.0]
[1743626316138,0.14216157,127.85,127.74,26.0]
[1743626316336,56.70426957,127.83,127.71,27.4058]
[1743626316536,56.70426957,127.83,127.72,0.14216157]
[1743626316736,56.70426957,127.83,127.7,18.67964886]
[1743626316737,56.70426957,127.81,127.7,0.03]
[1743626317036,56.70426957,127.82,127.72,26.0]
[1743626317232,56.70426957,127.84,127.73,18.79181043]
[1743626317432,56.70426957,127.84,127.73,26.0]
[1743626317637,18.79181043,127.85,127.73,26.0]
[1743626317638,56.70426957,127.83,127.73,26.0]
[1743626317839,56.70426957,127.82,127.7,0.17216157]
[1743626318154,44.79181043,127.81,127.7,0.03]
[1743626318351,18.64964886,127.81,127.7,0.03]
[1743626318649,56.70426957,127.81,127.7,0.03]
[1743626318948,0.14216157,127.82,127.71,0.28432314]
[1743626319155,7.8227,127.84,127.73,26.0]
[1743626319335,0.14216157,127.88,127.74,18.933972]
[1743626319536,56.70426957,127.84,127.73,26.0]
[1743626319738,18.79181043,127.87,127.74,0.28432314]
[1743626319957,0.063,127.8,127.74,0.28432314]
[1743626320132,0.063,127.8,127.74,18.933972]
[1743626320852,0.063,127.8,127.76,0.28432314]
[1743626321052,0.063,127.8,127.76,18.933972]
[1743626321433,0.063,127.8,127.79,26.28432314]
[1743626321841,7.818,127.91,127.79,44.933972]
[1743626322039,19.5373,127.96,127.8,0.28432314]
[1743626322241,19.5373,127.96,127.84,0.28432314]
[1743626322242,7.8149,127.96,127.84,0.28432314]
[1743626322436,7.8112,128.02,127.87,26.0]
[1743626322652,7.8112,128.02,127.88,0.28432314]
[1743626322857,19.5292,128.02,127.9,0.28432314]
[1743626323038,56.70426957,128.01,127.9,0.28432314]
[1743626323240,0.14216157,127.98,127.89,7.8192]
[1743626323435,56.70426957,127.99,127.89,7.8192]
[1743626323640,56.70426957,127.99,127.9,0.28432314]
[1743626323858,56.70426957,127.98,127.89,7.8192]
[1743626324064,46.9269,128.03,127.9,0.28432314]
[1743626324065,56.70426957,128.01,127.9,0.28432314]
[1743626324265,0.14216157,128.02,127.9,0.28432314]
[1743626324449,56.70426957,128.0,127.9,0.28432314]
[1743626324763,56.70426957,127.93,127.79,18.79181043]
[1743626325057,56.70426957,127.93,127.83,0.28432314]
[1743626325260,56.70426957,127.92,127.79,7.8253]
[1743626325466,56.70426957,127.92,127.8,18.64964886]
[1743626325664,56.70426957,127.92,127.83,26.0]
[1743626325962,0.14216157,127.96,127.83,26.0]
[1743626326141,56.70426957,127.95,127.84,0.28432314]
[1743626326345,56.70426957,127.93,127.83,26.0]
[1743626326668,7.8143,127.97,127.88,0.28432314]
[1743626326839,0.14216157,127.98,127.88,7.8198]
[1743626327164,0.14216157,127.98,127.89,0.28432314]
[1743626327165,56.70426957,127.98,127.89,0.28432314]
[1743626327659,56.70426957,128.0,127.89,18.933972]
[1743626327858,0.14216157,128.02,127.92,26.0]
[1743626328463,27.4002,128.03,127.93,0.28432314]
[1743626328761,0.063,128.03,127.93,18.933972]
[1743626328944,0.063,128.03,127.95,19.07613357]
[1743626329139,0.063,128.03,127.98,26.0]
[1743626329342,0.063,128.03,127.99,0.28432314]
[1743626329755,0.063,128.03,127.98,26.0]
[1743626329955,0.063,128.03,127.95,0.14216157]
[1743626330160,0.063,128.03,127.98,26.42648471]
[1743626330363,0.063,128.03,127.98,26.28432314]
[1743626330547,0.063,128.03,128.02,26.0]
[1743626330746,7.8056,128.12,128.03,0.28432314]
[1743626330962,7.8033,128.15,128.05,0.28432314]
[1743626331143,7.8033,128.15,128.07,26.0]
[1743626331343,0.22966789,128.16,128.08,26.28432314]
[1743626331767,0.22966789,128.16,128.13,0.28432314]
[1743626332062,7.796,128.27,128.17,0.28432314]
[1743626332267,7.796,128.27,128.18,0.28432314]
[1743626332479,56.70426957,128.25,128.08,0.28432314]
[1743626332645,56.70426957,128.18,128.04,66.3853]
[1743626332849,7.8003,128.2,128.09,7.807]
[1743626333152,7.8003,128.2,128.1,0.28432314]
[1743626333351,27.301,128.2,128.1,0.28432314]
[1743626333872,7.8003,128.2,128.13,26.0]
[1743626334165,57.64154886,128.24,128.13,26.0]
[1743626334166,7.7978,128.24,128.13,26.0]
[1743626334378,27.2924,128.24,128.12,0.28432314]
[1743626334662,7.8273,128.25,128.17,26.0]
[1743626334975,0.03,128.25,128.18,26.28432314]
[1743626335269,0.03,128.25,128.18,53.58952314]
[1743626335469,0.03,128.25,128.2,0.28432314]
[1743626335669,0.03,128.25,128.18,53.58952314]
[1743626335670,0.03,128.25,128.18,33.8014]
[1743626335851,0.03,128.25,128.17,0.28432314]
[1743626335852,7.8276,128.25,128.19,26.0]
[1743626336053,0.03,128.25,128.2,0.28432314]
[1743626336372,0.03,128.25,128.23,26.0]
[1743626336954,0.03,128.25,128.21,26.0]
[1743626337154,0.03,128.25,128.22,18.933972]
[1743626337355,0.03,128.25,128.23,26.0]
[1743626338643,0.03,128.25,128.24,19.07613357]
[1743626338870,0.03,128.25,128.24,8.08212314]
[1743626339169,2.8191034,128.28,128.24,0.28432314]
[1743626339359,2.8191034,128.28,128.22,7.799]
[1743626339562,10.6147034,128.28,128.17,26.59391043]
[1743626339882,10.6147034,128.28,128.17,7.8021]
[1743626340043,2.8191034,128.28,128.17,27.3074]
[1743626340246,2.8191034,128.28,128.24,26.0]
[1743626340451,2.8191034,128.28,128.27,26.28432314]
[1743626340657,2.8191034,128.28,128.27,26.0]
[1743626340856,2.8191034,128.28,128.13,27.3159]
[1743626341049,2.8191034,128.28,128.17,45.29181043]
[1743626341248,0.063,128.29,128.26,26.0]
[1743626341465,0.063,128.41,128.31,26.0]
[1743626341773,0.063,128.41,128.32,0.28432314]
[1743626341969,0.063,128.41,128.35,26.0]
[1743626342268,0.063,128.41,128.29,0.14216157]
[1743626342479,0.063,128.41,128.32,0.28432314]
[1743626342647,0.063,128.41,128.25,0.24021285]
[1743626342848,0.063,128.41,128.2,38.20754188]
[1743626342849,56.70426957,128.38,128.26,1.42567552]
[1743626343063,16.74,128.38,128.23,26.0]
[1743626343269,56.70426957,128.33,128.19,27.3032]
[1743626343476,56.70426957,128.27,128.17,7.8021]
[1743626343681,16.7,128.29,128.2,26.0]
[1743626343848,16.7,128.29,128.17,27.3074]
[1743626343849,16.7,128.29,128.17,7.8021]
[1743626344183,26.0,128.35,128.17,27.3074]
[1743626344475,16.94286234,128.38,128.25,26.0]
[1743626344476,56.70426957,128.37,128.25,26.0]
[1743626344674,16.68,128.38,128.17,67.74467662]
[1743626344675,56.70426957,128.33,128.17,67.74467662]
[1743626344970,56.70426957,128.26,128.1,7.8064]
[1743626345176,8.07362314,128.38,128.13,0.5]
[1743626345481,56.70426957,128.32,128.21,26.0]
[1743626345849,7.7893,128.38,128.25,26.0]
[1743626346074,56.70426957,128.26,128.05,18.65547688]
[1743626346273,56.70426957,128.25,128.05,18.65547688]
[1743626346483,56.70426957,128.25,128.11,0.14216157]
[1743626346646,56.84643114,128.28,128.11,0.14216157]
[1743626346647,16.8,128.24,128.11,0.14216157]
[1743626346854,7.7978,128.24,128.12,27.318]
[1743626347270,56.70426957,128.17,128.09,0.063]
[1743626347487,56.70426957,128.14,128.09,0.063]
[1743626347847,8.1,128.13,128.09,0.063]
[1743626348159,8.1,128.13,128.09,7.8698]
[1743626348360,75.49608,128.21,128.09,7.8698]
[1743626348564,56.70426957,128.24,128.09,27.3873]
[1743626348868,56.70426957,128.21,128.09,19.5805]
[1743626349052,26.0,128.23,128.1,18.79181043]
[1743626349252,26.0,128.23,128.12,26.0]
[1743626349673,26.0,128.22,128.09,0.063]
[1743626349884,7.7911,128.35,128.12,0.42648471]
[1743626350091,56.70426957,128.33,128.2,26.0]
[1743626350290,56.70426957,128.34,128.2,26.0]
[1743626350469,24.5711,128.35,128.21,26.0]
[1743626350667,16.78,128.35,128.25,26.0]
[1743626350873,16.78,128.35,128.26,27.2882]
[1743626351172,267.62,128.4,128.26,27.2882]
[1743626351372,0.063,128.41,128.29,26.0]
[1743626351597,56.70426957,128.37,128.26,27.2882]
[1743626351890,0.063,128.41,128.23,38.9909]
[1743626351891,0.22966789,128.3,128.27,26.0]
[1743626352893,0.22966789,128.3,128.28,7.7954]
[1743626353103,0.22966789,128.3,128.15,0.5]
[1743626353278,0.22966789,128.3,128.2,0.14216157]
[1743626353596,0.22966789,128.3,128.22,26.0]
[1743626353799,0.22966789,128.3,128.23,0.14216157]
[1743626353968,0.22966789,128.3,128.23,0.28432314]
[1743626354296,0.22966789,128.3,128.19,27.3032]
[1743626354496,0.22966789,128.3,128.2,18.79181043]
[1743626354679,7.7919,128.34,128.21,0.28432314]
[1743626354879,19.4745,128.38,128.25,7.7972]
[1743626355093,56.70426957,128.33,128.24,26.0]
[1743626355407,56.70426957,128.33,128.21,7.7997]
[1743626355408,56.70426957,128.31,128.21,7.7997]
[1743626355608,7.7899,128.37,128.24,26.0]
[1743626355898,56.70426957,128.3,128.21,7.7997]
[1743626356113,56.84643114,128.34,128.15,0.14216157]
[1743626356114,56.70426957,128.27,128.15,0.14216157]
[1743626356402,56.70426957,128.26,128.17,26.0]
[1743626356587,18.79181043,128.36,128.15,18.79181043]
[1743626356766,0.28432314,128.3,128.18,26.0]
[1743626356970,64.49896957,128.3,128.19,7.8009]
[1743626357180,56.70426957,128.23,128.09,0.063]
[1743626357376,19.07613357,128.29,128.1,27.3224]
[1743626357599,56.70426957,128.21,128.1,7.8064]
[1743626357906,56.70426957,128.21,128.09,15.623]
[1743626357907,56.70426957,128.22,128.09,23.43]
[1743626358107,18.64964886,128.29,128.1,0.14216157]
[1743626358397,18.79181043,128.29,128.16,26.0]
[1743626358608,56.70426957,128.28,128.17,0.28432314]
[1743626358896,56.70426957,128.28,128.17,7.8021]
[1743626358897,56.70426957,128.26,128.17,7.8021]
[1743626359108,56.70426957,128.26,128.16,26.0]
[1743626359277,18.79181043,128.28,128.16,33.8026]
[1743626359478,56.70426957,128.27,128.16,33.8026]
[1743626359714,26.0,128.25,128.14,7.8039]
[1743626359883,56.70426957,128.2,128.11,0.063]
[1743626360082,26.0,128.24,128.14,26.0]
[1743626360285,56.70426957,128.25,128.14,26.0]
[1743626360905,7.7978,128.24,128.15,7.8033]
[1743626361106,64.50206957,128.24,128.15,0.28432314]
[1743626361312,7.7978,128.24,128.14,33.8037]
[1743626361477,56.70426957,128.22,128.11,0.063]
[1743626361787,56.70426957,128.15,128.11,0.063]
[1743626361990,0.14216157,128.17,128.11,0.063]
[1743626362183,56.70426957,128.22,128.11,7.8687]
[1743626362384,56.70426957,128.19,128.11,0.063]
[1743626362597,56.70426957,128.18,128.11,0.063]
[1743626362799,56.70426957,128.19,128.11,0.063]
[1743626363006,7.8015,128.18,128.11,0.063]
[1743626363378,7.8015,128.18,128.11,26.063]
[1743626363602,56.70426957,128.17,128.11,0.063]
[1743626363801,27.3053,128.18,128.11,0.063]
[1743626364007,56.70426957,128.14,128.11,0.063]
[1743626364706,56.70426957,128.16,128.11,0.063]
[1743626364906,7.8039,128.14,128.11,0.063]
[1743626365112,0.14216157,128.12,128.11,0.063]
[1743626365405,0.28432314,128.11,128.09,0.063]
[1743626365581,56.98859271,128.1,128.09,0.063]
[1743626365781,26.14216157,128.11,128.09,0.0001]
[1743626366084,132.48467271,128.1,128.09,0.0001]
[1743626366415,26.14216157,128.06,127.98,0.063]
[1743626366585,38.933972,128.09,127.98,7.8763]
[1743626366586,18.933972,128.09,127.98,7.8763]
[1743626366787,20.0,128.13,128.01,26.0]
[1743626366788,0.28432314,128.12,128.01,26.0]
[1743626367013,56.70426957,128.09,128.02,7.8112]
[1743626367380,18.79181043,128.1,128.01,26.0]
[1743626367585,18.64964886,128.1,127.99,7.8131]
[1743626367795,56.70426957,128.08,127.99,7.8131]
[1743626367995,56.70426957,128.04,127.98,0.063]
[1743626368199,95.63824157,128.1,127.98,0.063]
[1743626368200,0.42648471,128.09,127.98,0.063]
[1743626368396,56.70426957,128.06,127.98,7.8765]
[1743626368686,56.70426957,128.04,127.98,0.063]
[1743626368895,7.8106,128.03,127.98,0.063]
[1743626369088,56.70426957,128.02,127.98,0.063]
[1743626369294,56.70426957,128.01,127.98,0.063]
[1743626369492,7.8102,128.04,127.98,0.063]
[1743626369690,64.51446957,128.04,127.98,0.063]
[1743626370092,64.51386957,128.05,127.98,0.063]
[1743626370292,7.8096,128.05,127.98,0.063]
[1743626370494,56.70426957,128.04,127.98,0.063]
[1743626370820,56.70426957,128.0,127.98,0.063]
[1743626371014,7.8118,128.01,127.98,0.063]
[1743626371191,64.51606957,128.01,127.98,0.063]
[1743626371506,56.70426957,128.02,127.98,0.063]
[1743626371715,56.70426957,128.01,127.98,0.063]
[1743626371912,56.70426957,128.0,127.98,0.063]
[1743626372116,0.28432314,128.03,127.98,0.063]
[1743626372322,56.70426957,128.0,127.98,0.063]
[1743626372516,56.70426957,128.01,127.98,0.063]
[1743626372693,18.79181043,128.03,127.98,0.063]
[1743626372895,64.51676957,128.0,127.98,0.063]
[1743626373095,56.70426957,127.99,127.98,0.063]
[1743626373516,56.70426957,128.0,127.98,0.063]
[1743626374109,16.62,128.04,127.98,0.063]
[1743626374304,56.70426957,128.03,127.98,0.063]
[1743626374504,56.70426957,128.0,127.98,0.063]
[1743626374908,56.70426957,127.99,127.98,0.063]
[1743626375223,56.70426957,127.99,127.86,46.9239]
[1743626375224,83.30918,127.99,127.86,27.3736]
[1743626375402,56.70426957,127.93,127.86,27.3736]
[1743626375602,56.70426957,127.92,127.86,7.821]
[1743626376116,56.70426957,127.94,127.86,7.821]
[1743626376312,18.79181043,127.97,127.86,7.821]
[1743626376498,7.8118,128.01,127.9,26.0]
[1743626376700,56.70426957,127.98,127.88,0.28432314]
[1743626377021,56.70426957,127.98,127.89,27.3672]
[1743626377515,56.70426957,127.97,127.89,27.3672]
[1743626377721,56.70426957,127.96,127.89,7.8192]
[1743626377910,56.70426957,127.95,127.89,7.8192]
[1743626378326,56.70426957,127.94,127.89,7.8192]
[1743626378510,56.70426957,127.94,127.86,7.821]
[1743626379013,16.3,127.96,127.85,39.1699]
[1743626379211,56.70426957,127.93,127.85,0.063]
[1743626379412,56.70426957,127.92,127.85,0.063]
[1743626379730,56.70426957,127.88,127.85,0.063]
[1743626379926,56.70426957,127.89,127.85,0.063]
[1743626380604,56.70426957,127.9,127.85,0.063]
[1743626380824,18.64964886,127.94,127.85,0.063]
[1743626381010,64.52386957,127.89,127.85,0.063]
[1743626381211,56.70426957,127.88,127.85,0.063]
[1743626381408,56.70426957,127.87,127.85,0.063]
[1743626381607,7.8196,127.89,127.85,0.063]
[1743626381608,139.55070071,127.86,127.85,0.063]
[1743626381811,158.20034957,127.86,127.85,0.063]
[1743626382107,139.40853914,127.86,127.85,0.063]
[1743626382713,132.48467271,127.86,127.85,0.063]
[1743626382912,26.14216157,127.82,127.8,0.063]
[1743626383113,26.14216157,127.82,127.7,0.03]
[1743626383114,0.14216157,127.78,127.72,0.063]
[1743626383425,56.70426957,127.77,127.72,0.063]
[1743626383612,57.20426957,127.86,127.72,0.063]
[1743626383613,56.70426957,127.86,127.72,0.063]
[1743626383814,18.79181043,127.84,127.72,0.063]
[1743626384019,7.8216,127.85,127.72,26.063]
[1743626384219,7.8216,127.85,127.73,0.28432314]
[1743626384220,56.70426957,127.84,127.73,0.28432314]
[1743626384418,56.70426957,127.84,127.72,26.063]
[1743626384619,56.70426957,127.83,127.72,26.063]
[1743626385033,16.24,127.87,127.77,27.3929]
[1743626385251,16.24,127.87,127.78,0.28432314]
[1743626385426,7.819,127.9,127.78,0.28432314]
[1743626385739,56.70426957,127.91,127.81,26.0]
[1743626386041,0.14216157,127.95,127.82,0.28432314]
[1743626386213,56.70426957,127.94,127.79,16.18]
[1743626386418,0.14216157,127.95,127.83,26.0]
[1743626386625,56.70426957,127.94,127.83,26.0]
[1743626386826,56.70426957,127.95,127.83,26.0]
[1743626387217,64.51986957,127.95,127.85,0.14216157]
[1743626387422,7.95586157,127.98,127.84,46.311772]
[1743626387717,56.70426957,127.95,127.84,27.66212314]
[1743626388338,56.70426957,127.93,127.84,27.3778]
[1743626388830,102.84408,127.98,127.85,0.28432314]
[1743626389035,56.70426957,127.95,127.84,27.3778]
[1743626389238,7.8155,127.95,127.84,27.3778]
[1743626389544,57.20203166,127.94,127.84,27.3778]
[1743626389737,7.8155,127.95,127.84,27.3778]
[1743626389934,18.64964886,127.97,127.87,26.0]
[1743626389935,7.8143,127.97,127.87,26.0]
[1743626390233,65.01633166,127.97,127.87,26.0]
[1743626390439,7.8134,127.99,127.89,26.0]
[1743626390630,65.01543166,127.99,127.89,26.0]
[1743626390946,57.20203166,127.94,127.85,0.28432314]
[1743626391139,27.3461,127.99,127.88,26.0]
[1743626391342,7.8144,127.97,127.89,7.8192]
[1743626391846,57.20203166,127.98,127.89,27.3672]
[1743626392058,57.20203166,127.97,127.89,27.3672]
[1743626392350,57.20203166,128.0,127.89,27.3672]
[1743626392641,7.8112,128.02,127.9,18.933972]
[1743626393020,65.01323166,128.02,127.91,0.14216157]
[1743626393216,65.01323166,128.02,127.91,27.3628]
[1743626393421,57.20203166,128.01,127.91,27.3628]
[1743626393616,7.8112,128.02,127.91,27.3628]
[1743626393820,0.03,128.03,127.91,27.3628]
[1743626393821,0.03,128.03,127.94,26.0]
[1743626394543,0.03,128.03,127.95,0.28432314]
[1743626395046,7.8407,128.03,127.94,26.0]
[1743626395219,7.8125,128.0,127.91,27.3628]
[1743626395839,7.8409,128.03,127.92,19.07613357]
[1743626396015,7.8409,128.03,127.92,18.933972]
[1743626396219,57.20203166,127.99,127.91,7.8179]
[1743626396415,18.79181043,128.02,127.91,7.8179]
[1743626396628,57.20203166,127.97,127.85,15.88]
[1743626396935,57.20203166,127.97,127.88,26.0]
[1743626397138,57.20203166,127.98,127.89,0.28432314]
[1743626397319,7.8143,127.97,127.9,7.8186]
[1743626397519,57.20203166,127.95,127.84,27.3778]
[1743626398024,57.20203166,127.94,127.84,27.3778]
[1743626398444,57.20203166,127.94,127.85,0.28432314]
[1743626398633,57.20203166,127.94,127.84,27.3778]
[1743626399447,7.8167,127.93,127.84,27.3778]
[1743626400342,84.56063166,127.93,127.84,7.8222]
[1743626400544,57.20203166,127.92,127.82,15.86]
[1743626400849,57.34419323,127.92,127.81,7.8241]
[1743626401023,57.20203166,127.92,127.8,7.8545]
[1743626401224,57.20203166,127.91,127.8,7.8545]
[1743626401431,7.8198,127.88,127.8,0.03]
[1743626401636,65.02183166,127.88,127.8,0.03]
[1743626401828,7.8198,127.88,127.8,0.03]
[1743626402029,7.8194,127.89,127.8,0.03]
[1743626402443,27.3674,127.89,127.8,0.03]
[1743626402637,57.20203166,127.87,127.8,0.03]
[1743626402945,7.8194,127.89,127.8,0.03]
[1743626404226,7.8149,127.96,127.84,0.28432314]
[1743626404422,19.5342,127.99,127.87,26.0]
[1743626404624,20.03,128.03,127.88,19.07613357]
[1743626404625,0.14216157,128.02,127.88,19.07613357]
[1743626404927,15.73,128.03,127.83,0.5]
[1743626404928,0.03,128.03,127.92,45.07613357]
[1743626405249,65.04303166,128.03,127.92,41.98432314]
[1743626405438,65.01453166,128.0,127.87,66.4737]
[1743626405743,65.01453166,128.0,127.88,0.28432314]
[1743626405929,27.3437,128.0,127.88,0.28432314]
[1743626406128,57.20203166,127.97,127.87,7.8204]
[1743626406327,57.20203166,127.95,127.82,18.79181043]
[1743626406525,15.7,127.97,127.82,18.79181043]
[1743626406742,57.20203166,127.96,127.86,19.07613357]
[1743626407049,72.90203166,127.97,127.86,19.07613357]
[1743626407229,57.20203166,127.97,127.86,0.28432314]
[1743626407436,57.20203166,127.98,127.86,19.07613357]
[1743626407629,7.8143,127.97,127.87,27.3715]
[1743626407834,65.01633166,127.97,127.87,27.3715]
[1743626408247,0.063,127.99,127.88,0.28432314]
[1743626408433,57.20203166,127.95,127.8,0.03]
[1743626408747,57.20203166,127.95,127.84,27.3778]
[1743626408941,57.20203166,127.95,127.85,19.07613357]
[1743626409142,7.8137,127.98,127.85,19.07613357]
[1743626409338,7.8137,127.98,127.88,0.28432314]
[1743626410054,7.8137,127.98,127.89,7.8192]
[1743626410743,57.20203166,127.94,127.86,7.821]
[1743626411046,57.20203166,127.95,127.86,7.821]
[1743626411240,57.20203166,127.94,127.83,7.8228]
[1743626411443,57.20203166,127.93,127.83,7.8228]
[1743626412049,83.0,127.94,127.84,19.07613357]
[1743626412429,83.0,127.94,127.87,26.0]
[1743626412627,83.0,127.94,127.84,18.933972]
[1743626412628,90.8162,127.94,127.84,18.933972]
[1743626412948,83.0,127.94,127.85,0.14216157]
[1743626413246,90.8161,127.94,127.84,0.28432314]
[1743626413449,90.8161,127.94,127.81,7.8241]